bitfinex/quotes_SOLUSD_20250508
["timestamp","ask_amount","ask_price","bid_price","bid_amount"]
[1746673896889,25.02174794,150.42,150.39,19.92933472]
[1746673897094,51.59928599,150.42,150.34,6.65158972]
[1746673897393,25.02174794,150.41,150.38,19.92933472]
[1746673898796,25.02174794,150.41,150.34,49.28056404]
[1746673898999,25.02174794,150.41,150.36,6.650517]
[1746673899294,25.02174794,150.4,150.37,19.92933472]
[1746673899490,25.02174794,150.4,150.36,6.650517]
[1746673899701,25.02174794,150.4,150.37,19.92933472]
[1746673899904,44.95108266,150.4,150.36,19.92933472]
[1746673900107,19.92933472,150.38,150.32,8.29815458]
[1746673900310,19.92933472,150.37,150.32,26.5813893]
[1746673900597,19.92933472,150.38,150.34,19.92933472]
[1746673900795,26.56574794,150.39,150.35,19.92933472]
[1746673900996,26.56574794,150.39,150.36,19.92933472]
[1746673901387,26.56574794,150.39,150.35,19.92933472]
[1746673901685,46.49508266,150.39,150.35,19.92933472]
[1746673901900,25.02174794,150.39,150.35,26.58039109]
[1746673902087,25.02174794,150.39,150.36,19.92933472]
[1746673902603,25.02174794,150.39,150.35,6.65105637]
[1746673902785,44.95108266,150.39,150.34,19.92933472]
[1746673902982,19.92933472,150.38,150.32,26.0]
[1746673903178,25.02174794,150.39,150.32,26.0]
[1746673903179,25.02174794,150.39,150.34,19.92933472]
[1746673903483,19.92933472,150.38,150.34,19.92933472]
[1746673903797,19.92933472,150.37,150.32,19.92933472]
[1746673904006,44.95108266,150.36,150.32,19.92933472]
[1746673904179,44.95108266,150.36,150.3,32.65335994]
[1746673904387,44.95108266,150.36,150.31,19.92933472]
[1746673904580,44.95108266,150.36,150.32,19.92933472]
[1746673905009,51.60197404,150.36,150.32,19.92933472]
[1746673905379,51.60197404,150.36,150.31,19.92933472]
[1746673905693,51.60197404,150.36,150.3,32.65335994]
[1746673905895,19.92933472,150.34,150.3,19.92933472]
[1746673906086,31.67263932,150.36,150.25,6.65557404]
[1746673906087,19.92933472,150.32,150.25,6.65557404]
[1746673906296,19.92933472,150.32,150.27,19.92933472]
[1746673906506,19.92933472,150.32,150.28,19.92933472]
[1746673907002,26.58195486,150.32,150.25,32.65557404]
[1746673907178,19.92933472,150.31,150.27,19.92933472]
[1746673907578,19.92933472,150.29,150.23,6.65646009]
[1746673907801,19.92933472,150.29,150.25,19.92933472]
[1746673908402,25.02174794,150.3,150.25,19.92933472]
[1746673908699,26.58313736,150.29,150.25,19.92933472]
[1746673909279,6.65380264,150.29,150.21,26.0]
[1746673909481,19.92933472,150.27,150.23,19.92933472]
[1746673909894,19.92933472,150.27,150.21,26.0]
[1746673910098,19.92933472,150.27,150.23,19.92933472]
[1746673910601,6.65490563,150.27,150.23,19.92933472]
[1746673910783,26.58424035,150.27,150.23,19.92933472]
[1746673911198,19.92933472,150.27,150.23,19.92933472]
[1746673911503,51.60547966,150.28,150.24,19.92933472]
[1746673911804,51.60547966,150.28,150.23,19.92933472]
[1746673911805,19.92933472,150.27,150.23,19.92933472]
[1746673912384,19.92933472,150.26,150.22,19.92933472]
[1746673913006,19.92933472,150.25,150.2,26.0]
[1746673913502,19.92933472,150.25,150.21,19.92933472]
[1746673914098,44.95108266,150.26,150.17,39.10767366]
[1746673914283,44.95108266,150.26,150.22,19.92933472]
[1746673914478,51.60631091,150.26,150.22,19.92933472]
[1746673914683,44.95108266,150.26,150.22,19.92933472]
[1746673915006,51.60629166,150.26,150.21,6.65711607]
[1746673915199,51.60629166,150.26,150.22,19.92933472]
[1746673915881,51.60629166,150.26,150.2,6.65763187]
[1746673916086,25.02174794,150.25,150.22,19.92933472]
[1746673916387,25.02174794,150.25,150.21,6.65728166]
[1746673916604,25.02174794,150.25,150.22,19.92933472]
[1746673916798,25.02174794,150.25,150.21,6.65728166]
[1746673917005,25.02174794,150.25,150.24,19.92933472]
[1746673917503,19.92933472,150.27,150.23,19.92933472]
[1746673917891,19.92933472,150.28,150.23,19.92933472]
[1746673918087,57.36264794,150.29,150.23,19.92933472]
[1746673918293,51.60544967,150.28,150.24,19.92933472]
[1746673918591,19.92933472,150.27,150.23,19.92933472]
[1746673918791,25.02174794,150.28,150.24,19.92933472]
[1746673918994,1.6094,150.3,150.22,6.6567484]
[1746673919185,28.1922999,150.3,150.26,19.92933472]
[1746673919386,0.09,150.27,150.24,19.92933472]
[1746673919696,20.01933472,150.27,150.21,6.65723977]
[1746673919890,19.92933472,150.27,150.2,26.0]
[1746673920088,19.92933472,150.27,150.23,19.92933472]
[1746673920293,26.58440538,150.27,150.23,19.92933472]
[1746673920499,19.92933472,150.28,150.24,19.92933472]
[1746673920688,47.53873472,150.3,150.25,19.92933472]
[1746673920894,47.53873472,150.3,150.26,19.92933472]
[1746673921089,1.6094,150.3,150.26,19.92933472]
[1746673921295,19.92933472,150.32,150.27,19.92933472]
[1746673921608,25.02174794,150.32,150.3,19.92933472]
[1746673921781,0.09,150.31,150.28,26.0]
[1746673921988,0.09,150.31,150.3,19.92933472]
[1746673922312,25.02174794,150.36,150.3,26.58269466]
[1746673922508,25.02174794,150.36,150.33,19.92933472]
[1746673922729,25.02174794,150.36,150.34,19.92933472]
[1746673922903,25.02174794,150.36,150.35,19.92933472]
[1746673923086,25.02174794,150.36,150.3,6.65335994]
[1746673923615,51.60203176,150.36,150.3,6.65335994]
[1746673923793,51.60203176,150.36,150.32,19.92933472]
[1746673923994,51.60203176,150.36,150.31,19.92933472]
[1746673924314,19.92933472,150.34,150.28,34.27452473]
[1746673924495,19.92933472,150.35,150.3,19.92933472]
[1746673924901,19.92933472,150.35,150.31,19.92933472]
[1746673925613,26.58092444,150.34,150.3,19.92933472]
[1746673925821,19.92933472,150.33,150.29,19.92933472]
[1746673926009,26.58092444,150.34,150.3,19.92933472]
[1746673926310,6.65128995,150.35,150.3,19.92933472]
[1746673926511,6.65128995,150.35,150.31,19.92933472]
[1746673926713,51.60183593,150.36,150.31,19.92933472]
[1746673926916,19.92933472,150.35,150.27,6.65459379]
[1746673927112,19.92933472,150.35,150.3,19.92933472]
[1746673927321,19.92933472,150.33,150.29,19.92933472]
[1746673927500,19.92933472,150.34,150.3,19.92933472]
[1746673927699,26.58092444,150.34,150.3,19.92933472]
[1746673927889,19.92933472,150.33,150.27,6.65460722]
[1746673928113,44.95108266,150.32,150.26,26.0]
[1746673928309,19.92933472,150.31,150.26,19.92933472]
[1746673928513,19.92933472,150.31,150.27,19.92933472]
[1746673929010,25.02174794,150.32,150.27,19.92933472]
[1746673929190,19.92933472,150.31,150.26,19.92933472]
[1746673929391,19.92933472,150.3,150.26,19.92933472]
[1746673929693,6.6529173,150.31,150.26,19.92933472]
[1746673930002,6.6529173,150.31,150.28,19.92933472]
[1746673930212,26.58225202,150.31,150.24,34.27629668]
[1746673930398,26.58225202,150.31,150.26,19.92933472]
[1746673930597,19.92933472,150.3,150.24,32.65589668]
[1746673930809,19.92933472,150.3,150.26,19.92933472]
[1746673931013,26.58225202,150.31,150.26,19.92933472]
[1746673931924,26.58225202,150.31,150.25,6.65531056]
[1746673932100,19.92933472,150.3,150.26,19.92933472]
[1746673932596,44.95108266,150.29,150.24,6.65596771]
[1746673932894,25.02174794,150.29,150.25,19.92933472]
[1746673933720,25.02174794,150.29,150.26,19.92933472]
[1746673934319,44.95108266,150.29,150.23,6.65646009]
[1746673934500,25.02174794,150.29,150.26,19.92933472]
[1746673935218,44.95108266,150.29,150.25,19.92933472]
[1746673935431,25.02174794,150.29,150.26,19.92933472]
[1746673936033,31.67565654,150.29,150.23,6.65646009]
[1746673936199,44.95108266,150.29,150.23,6.65646009]
[1746673936397,44.95108266,150.29,150.25,19.92933472]
[1746673936604,25.02174794,150.29,150.27,19.92933472]
[1746673936909,25.02174794,150.29,150.23,6.65646009]
[1746673937097,25.02174794,150.29,150.26,19.92933472]
[1746673938323,25.02174794,150.29,150.24,6.65573135]
[1746673938516,51.60500788,150.29,150.25,19.92933472]
[1746673939029,19.92933472,150.28,150.24,19.92933472]
[1746673939208,19.92933472,150.28,150.22,32.65675434]
[1746673939413,31.67567316,150.29,150.23,19.92933472]
[1746673939713,26.58389982,150.28,150.22,32.65686639]
[1746673939916,19.92933472,150.27,150.23,19.92933472]
[1746673940103,19.92933472,150.27,150.22,19.92933472]
[1746673940907,19.92933472,150.26,150.22,19.92933472]
[1746673941710,26.5846906,150.26,150.22,19.92933472]
[1746673942434,18.64964886,150.28,150.22,19.92933472]
[1746673942601,19.92933472,150.27,150.23,19.92933472]
[1746673942801,19.92933472,150.26,150.2,8.30395186]
[1746673943020,19.92933472,150.26,150.22,19.92933472]
[1746673944013,51.60589708,150.27,150.23,19.92933472]
[1746673944214,31.67656236,150.27,150.23,19.92933472]
[1746673944415,51.605798,150.27,150.21,6.65734638]
[1746673944613,44.95108266,150.27,150.23,19.92933472]
[1746673944926,25.02174794,150.27,150.24,19.92933472]
[1746673945418,44.95108266,150.27,150.23,19.92933472]
[1746673945629,51.60590099,150.27,150.23,19.92933472]
[1746673946034,31.67656627,150.27,150.23,19.92933472]
[1746673946244,25.02174794,150.27,150.22,6.65675132]
[1746673946417,25.02174794,150.27,150.24,19.92933472]
[1746673946820,25.02174794,150.27,150.25,19.92933472]
[1746673947311,25.02174794,150.27,150.26,19.92933472]
[1746673947706,25.02174794,150.27,150.22,32.65675132]
[1746673948047,25.02174794,150.27,150.25,19.92933472]
[1746673948531,25.02174794,150.27,150.22,32.65677654]
[1746673948699,25.02174794,150.27,150.2,8.30401785]
[1746673949033,31.67658488,150.27,150.24,19.92933472]
[1746673949528,25.02174794,150.27,150.24,19.92933472]
[1746673949824,31.67675618,150.27,150.24,12.48213514]
[1746673950025,44.15889132,150.27,150.2,27.6463]
[1746673950222,44.15889132,150.27,150.23,12.48213514]
[1746673950825,44.15889132,150.27,150.22,12.48213514]
[1746673951626,44.15889132,150.27,150.2,27.6463]
[1746673951924,44.15889132,150.27,150.23,12.48213514]
[1746673952329,44.15889132,150.27,150.2,27.6463]
[1746673952514,44.15889132,150.27,150.23,12.48213514]
[1746673952832,37.50388308,150.26,150.2,1.6463]
[1746673953010,25.02174794,150.26,150.21,12.48213514]
[1746673953327,37.50388308,150.26,150.21,12.48213514]
[1746673953626,25.02174794,150.26,150.22,12.48213514]
[1746673953830,37.50388308,150.26,150.22,12.48213514]
[1746673954154,12.48213514,150.23,150.16,1.5973]
[1746673954429,37.50388308,150.24,150.2,12.48213514]
[1746673954614,25.02174794,150.23,150.16,1.5973]
[1746673954817,6.6569032,150.22,150.19,12.48213514]
[1746673955318,6.6569032,150.22,150.16,1.5973]
[1746673955523,6.6569032,150.22,150.19,12.48213514]
[1746673956131,31.67835899,150.23,150.2,12.48213514]
[1746673956335,25.02174794,150.23,150.21,12.48213514]
[1746673957834,31.6782205,150.23,150.21,12.48213514]
[1746673958540,25.02174794,150.23,150.18,6.65847289]
[1746673958923,25.02174794,150.23,150.21,12.48213514]
[1746673959852,25.02174794,150.23,150.2,12.48213514]
[1746673960140,31.67830447,150.23,150.2,12.48213514]
[1746673960939,25.02174794,150.23,150.21,12.48213514]
[1746673961341,31.67823052,150.23,150.2,12.48213514]
[1746673961529,31.67823052,150.23,150.19,12.48213514]
[1746673962425,31.67823052,150.23,150.2,12.48213514]
[1746673962740,31.67823052,150.23,150.19,12.48213514]
[1746673963045,44.16036566,150.23,150.16,8.25673834]
[1746673963239,37.50388308,150.22,150.18,12.48213514]
[1746673963427,25.02174794,150.22,150.18,12.48213514]
[1746673963631,25.02174794,150.22,150.19,12.48213514]
[1746673964148,31.67898278,150.22,150.19,12.48213514]
[1746673964330,31.67898278,150.22,150.16,6.65955926]
[1746673964531,31.67898278,150.22,150.19,12.48213514]
[1746673965755,31.67898278,150.22,150.15,6.66000666]
[1746673965929,31.67898278,150.22,150.19,12.48213514]
[1746673966246,31.67898278,150.22,150.18,12.48213514]
[1746673966445,25.02174794,150.21,150.15,6.66000666]
[1746673966750,25.02174794,150.21,150.17,12.48213514]
[1746673966948,6.65778961,150.2,150.17,12.48213514]
[1746673968526,31.67925315,150.21,150.17,12.48213514]
[1746673968728,31.67925315,150.21,150.18,12.48213514]
[1746673969427,31.67925315,150.21,150.17,12.48213514]
[1746673969724,44.16138829,150.21,150.17,12.48213514]
[1746673970025,25.02174794,150.2,150.17,12.48213514]
[1746673970552,31.6796268,150.2,150.17,12.48213514]
[1746673970853,31.6796268,150.2,150.18,12.48213514]
[1746673971735,25.02174794,150.2,150.19,12.48213514]
[1746673972633,25.02174794,150.24,150.19,12.48213514]
[1746673972960,25.02174794,150.24,150.21,12.48213514]
[1746673973953,31.67779574,150.24,150.21,12.48213514]
[1746673974350,25.02174794,150.24,150.23,12.48213514]
[1746673974545,25.02174794,150.24,150.18,44.19046198]
[1746673974749,25.02174794,150.24,150.23,12.48213514]
[1746673975751,25.02174794,150.24,150.22,12.48213514]
[1746673976452,25.02174794,150.24,150.23,12.48213514]
[1746673980169,25.02174794,150.24,150.19,6.6582329]
[1746673980349,25.02174794,150.24,150.23,12.48213514]
[1746673980661,25.02174794,150.27,150.23,12.48213514]
[1746673980832,25.02174794,150.27,150.25,12.48213514]
[1746673981244,25.02174794,150.27,150.26,12.48213514]
[1746673982647,25.02174794,150.27,150.25,12.48213514]
[1746673983240,25.02174794,150.27,150.26,12.48213514]
[1746673984564,25.02174794,150.27,150.19,41.95346402]
[1746673984763,25.02174794,150.27,150.26,12.48213514]
[1746673985353,25.02174794,150.27,150.25,12.48213514]
[1746673986639,31.67662707,150.27,150.19,16.64558226]
[1746673986867,31.67662707,150.27,150.24,12.48213514]
[1746673987363,25.02174794,150.27,150.26,12.48213514]
[1746673987566,6.65260319,150.32,150.26,12.48213514]
[1746673987746,31.67393497,150.33,150.3,12.48213514]
[1746673988062,0.09,150.31,150.24,40.13083514]
[1746673988763,0.09,150.31,150.25,23.29450914]
[1746673989361,0.09,150.31,150.3,12.48213514]
[1746673991448,0.09,150.31,150.3,19.13549508]
[1746673992366,0.09,150.31,150.3,12.48213514]
[1746673993343,0.09,150.31,150.28,6.65424264]
[1746673993543,0.09,150.31,150.3,12.48213514]
[1746673994446,0.09,150.31,150.3,19.13549508]
[1746674000676,25.02174794,150.37,150.3,45.13549508]
[1746674000877,25.02174794,150.37,150.34,12.48213514]
[1746674001883,31.67213113,150.37,150.34,12.48213514]
[1746674002473,31.67213113,150.37,150.33,12.48213514]
[1746674002774,12.48213514,150.36,150.31,6.65273319]
[1746674002979,12.48213514,150.36,150.3,26.0]
[1746674003151,25.02174794,150.35,150.3,12.48213514]
[1746674003357,25.02174794,150.35,150.27,26.0]
[1746674003671,25.02174794,150.35,150.32,12.48213514]
[1746674004046,25.02174794,150.35,150.27,26.0]
[1746674004271,25.02174794,150.35,150.32,12.48213514]
[1746674004582,25.02174794,150.35,150.31,12.48213514]
[1746674004747,37.50388308,150.35,150.31,12.48213514]
[1746674004946,44.15531473,150.35,150.31,12.48213514]
[1746674006167,44.15531473,150.35,150.28,6.65381871]
[1746674006371,44.15531473,150.35,150.31,12.48213514]
[1746674006581,44.15531473,150.35,150.27,32.6543594]
[1746674006875,44.15531473,150.35,150.31,12.48213514]
[1746674007573,44.15531473,150.35,150.3,12.48213514]
[1746674008074,44.15531473,150.35,150.31,12.48213514]
[1746674008462,44.15531473,150.35,150.3,12.48213514]
[1746674009072,25.02174794,150.34,150.3,12.48213514]
[1746674009274,25.02174794,150.34,150.31,12.48213514]
[1746674009874,31.67375526,150.34,150.31,12.48213514]
[1746674010379,31.67375526,150.34,150.32,12.48213514]
[1746674011053,25.02174794,150.34,150.32,12.48213514]
[1746674011254,31.67346353,150.34,150.32,12.48213514]
[1746674011472,31.67346353,150.34,150.31,12.48213514]
[1746674013877,31.67346353,150.34,150.28,6.6542454]
[1746674014201,31.67346353,150.34,150.31,12.48213514]
[1746674014471,25.02174794,150.34,150.33,12.48213514]
[1746674016050,25.11174794,150.34,150.33,12.48213514]
[1746674016267,0.09,150.34,150.33,12.48213514]
[1746674017170,0.09,150.34,150.33,19.13416733]
[1746674018282,0.09,150.34,150.33,12.48213514]
[1746674019874,31.67177354,150.38,150.33,12.48213514]
[1746674020175,31.67177354,150.38,150.34,12.48213514]
[1746674020377,25.02174794,150.37,150.34,12.48213514]
[1746674020759,25.02174794,150.37,150.35,12.48213514]
[1746674021710,25.02174794,150.37,150.34,12.48213514]
[1746674022555,25.02174794,150.37,150.35,12.48213514]
[1746674023679,25.02174794,150.37,150.36,12.48213514]
[1746674024782,25.02174794,150.37,150.35,12.48213514]
[1746674025368,25.02174794,150.37,150.36,12.48213514]
[1746674025571,25.02174794,150.37,150.35,12.48213514]
[1746674026989,25.02174794,150.37,150.36,12.48213514]
[1746674027772,25.02174794,150.37,150.35,12.48213514]
[1746674031080,25.02174794,150.37,150.36,12.48213514]
[1746674032786,33.21226199,150.41,150.36,12.48213514]
[1746674032982,33.21226199,150.41,150.35,26.0]
[1746674032983,45.69439713,150.41,150.35,26.0]
[1746674033185,45.69439713,150.41,150.37,12.48213514]
[1746674034089,45.69439713,150.41,150.35,26.0]
[1746674034278,45.69439713,150.41,150.37,12.48213514]
[1746674034684,12.48213514,150.39,150.34,26.0]
[1746674034894,12.48213514,150.38,150.34,12.48213514]
[1746674035488,0.09,150.36,150.34,12.48213514]
[1746674035791,0.09,150.36,150.35,12.48213514]
[1746674036712,0.09,150.36,150.33,6.65159871]
[1746674037190,0.09,150.36,150.34,12.48213514]
[1746674037564,0.09,150.36,150.35,12.48213514]
[1746674038093,0.09,150.36,150.35,19.13328246]
[1746674041992,0.09,150.36,150.35,45.13328246]
[1746674045578,0.09,150.36,150.35,32.65114732]
[1746674045778,0.09,150.36,150.35,45.13328246]
[1746674046492,0.09,150.36,150.35,19.13328246]
[1746674046801,0.09,150.36,150.35,12.48213514]
[1746674051782,0.09,150.36,150.35,19.13328246]
[1746674051978,0.09,150.36,150.35,6.65114732]
[1746674052179,57.221784,150.36,150.29,12.48213514]
[1746674052396,44.73964886,150.36,150.29,12.48213514]
[1746674052681,12.48213514,150.35,150.3,12.48213514]
[1746674052992,44.73964886,150.36,150.3,12.48213514]
[1746674053196,12.48213514,150.35,150.3,12.48213514]
[1746674053391,6.65158972,150.34,150.3,12.48213514]
[1746674055885,19.13372486,150.34,150.3,12.48213514]
[1746674056108,19.13372486,150.34,150.29,12.48213514]
[1746674056612,19.13372486,150.34,150.3,12.48213514]
[1746674056800,19.13372486,150.34,150.29,12.48213514]
[1746674056991,12.48213514,150.3,150.23,26.0]
[1746674057196,12.48213514,150.3,150.26,12.48213514]
[1746674057991,64.13520428,150.33,150.27,12.48213514]
[1746674058193,19.13505244,150.31,150.26,12.48213514]
[1746674060007,12.48213514,150.3,150.25,12.48213514]
[1746674060200,12.48213514,150.28,150.24,12.48213514]
[1746674061089,12.48213514,150.29,150.25,12.48213514]
[1746674061288,56.15353194,150.3,150.25,12.48213514]
[1746674061605,50.32519209,150.3,150.25,12.48213514]
[1746674061799,62.80732723,150.3,150.25,12.48213514]
[1746674061989,12.48213514,150.29,150.25,12.48213514]
[1746674062311,12.48213514,150.28,150.24,12.48213514]
[1746674062505,12.48213514,150.28,150.23,38.48213514]
[1746674062693,12.48213514,150.28,150.24,12.48213514]
[1746674064011,12.48213514,150.28,150.23,32.65645439]
[1746674064205,19.13645539,150.28,150.23,26.0]
[1746674064405,19.13645539,150.28,150.23,38.48213514]
[1746674064905,12.48213514,150.27,150.22,12.48213514]
[1746674065214,12.48213514,150.27,150.21,6.65721433]
[1746674065520,12.48213514,150.27,150.22,12.48213514]
[1746674065716,12.48213514,150.27,150.23,12.48213514]
[1746674066099,12.48213514,150.27,150.22,6.6568536]
[1746674066100,6.2909,150.23,150.15,12.48213514]
[1746674066313,12.48213514,150.2,150.16,38.48213514]
[1746674066605,12.48213514,150.21,150.16,38.48213514]
[1746674066809,12.48213514,150.21,150.16,12.48213514]
[1746674067115,12.48213514,150.21,150.17,12.48213514]
[1746674067409,12.48213514,150.21,150.14,6.66045024]
[1746674067410,12.48213514,150.2,150.16,19.14169827]
[1746674067604,12.48213514,150.21,150.17,12.48213514]
[1746674068813,12.48213514,150.21,150.17,19.14114157]
[1746674071404,25.02174794,150.23,150.18,12.48213514]
[1746674071627,25.02174794,150.23,150.17,6.65900643]
[1746674071628,25.02174794,150.23,150.19,12.48213514]
[1746674071926,37.50388308,150.23,150.19,12.48213514]
[1746674073022,37.50388308,150.23,150.19,19.14008773]
[1746674073327,25.02174794,150.23,150.21,12.48213514]
[1746674075032,12.48213514,150.25,150.21,12.48213514]
[1746674075326,33.18539694,150.26,150.21,19.13945663]
[1746674075625,12.48213514,150.25,150.21,19.13945663]
[1746674075816,39.01228308,150.26,150.23,12.48213514]
[1746674076523,45.66741866,150.26,150.22,12.48213514]
[1746674077028,39.01228308,150.26,150.21,6.65732149]
[1746674077214,39.01228308,150.26,150.22,12.48213514]
[1746674078331,26.53014794,150.26,150.24,12.48213514]
[1746674078539,25.02174794,150.26,150.25,12.48213514]
[1746674079714,25.02174794,150.26,150.25,19.13770918]
[1746674083436,1.6494,150.3,150.25,19.13770918]
[1746674083642,1.6494,150.3,150.28,12.48213514]
[1746674083821,25.02174794,150.32,150.29,12.48213514]
[1746674085563,25.02174794,150.32,150.3,12.48213514]
[1746674085716,25.02174794,150.32,150.29,12.48213514]
[1746674087231,25.02174794,150.32,150.31,12.48213514]
[1746674087416,1.5203,150.34,150.31,12.48213514]
[1746674087621,37.50388308,150.35,150.26,27.5244]
[1746674087833,37.50388308,150.35,150.31,12.48213514]
[1746674088742,44.15518657,150.35,150.27,6.65468822]
[1746674088921,44.15518657,150.35,150.31,12.48213514]
[1746674089118,31.67305143,150.35,150.31,12.48213514]
[1746674089320,25.02174794,150.35,150.31,12.48213514]
[1746674090044,44.15517028,150.35,150.31,12.48213514]
[1746674090336,12.48213514,150.32,150.27,6.65468822]
[1746674090545,12.48213514,150.32,150.28,12.48213514]
[1746674090720,12.48213514,150.32,150.28,19.13618016]
[1746674090921,19.13396248,150.34,150.29,12.48213514]
[1746674091235,6.65182734,150.34,150.3,12.48213514]
[1746674091636,19.13396248,150.34,150.29,12.48213514]
[1746674091949,6.65182734,150.34,150.27,32.65468822]
[1746674092121,6.65182734,150.34,150.29,12.48213514]
[1746674092320,12.48213514,150.33,150.29,12.48213514]
[1746674092625,19.13396248,150.34,150.3,12.48213514]
[1746674092829,19.13396248,150.34,150.27,32.65468822]
[1746674093034,12.48213514,150.31,150.27,32.65468822]
[1746674093228,12.48213514,150.31,150.27,12.48213514]
[1746674093441,12.48213514,150.3,150.26,12.48213514]
[1746674095356,12.48213514,150.31,150.26,12.48213514]
[1746674096041,12.48213514,150.31,150.26,19.13713907]
[1746674096562,12.48213514,150.31,150.27,12.48213514]
[1746674096774,20.66691284,150.32,150.27,12.48213514]
[1746674096960,8.1847777,150.32,150.27,12.48213514]
[1746674097134,20.66691284,150.32,150.28,12.48213514]
[1746674097431,20.66691284,150.32,150.27,12.48213514]
[1746674099060,25.02174794,150.31,150.27,12.48213514]
[1746674099554,25.02174794,150.31,150.26,6.65500393]
[1746674099759,25.02174794,150.31,150.27,12.48213514]
[1746674100056,25.02174794,150.31,150.28,12.48213514]
[1746674100230,12.48213514,150.3,150.26,6.65500393]
[1746674100430,12.48213514,150.3,150.26,12.48213514]
[1746674100651,44.15686092,150.31,150.27,12.48213514]
[1746674101236,12.48213514,150.29,150.25,12.48213514]
[1746674101431,12.48213514,150.28,150.24,12.48213514]
[1746674101644,25.02174794,150.29,150.25,12.48213514]
[1746674102258,25.02174794,150.29,150.27,12.48213514]
[1746674102771,25.02174794,150.29,150.28,12.48213514]
[1746674103264,25.02174794,150.36,150.29,6.65380264]
[1746674103471,31.67251993,150.36,150.34,12.48213514]
[1746674103634,0.09,150.35,150.33,12.48213514]
[1746674104062,25.02174794,150.36,150.34,12.48213514]
[1746674104296,25.02174794,150.36,150.33,12.48213514]
[1746674104477,25.02174794,150.36,150.35,12.48213514]
[1746674104768,25.02174794,150.36,150.29,23.28830926]
[1746674104769,37.50388308,150.36,150.31,12.48213514]
[1746674104937,12.48213514,150.35,150.31,12.48213514]
[1746674105137,25.02174794,150.36,150.33,12.48213514]
[1746674105337,31.67247341,150.36,150.33,12.48213514]
[1746674105564,31.67247341,150.36,150.32,12.48213514]
[1746674106445,31.67247341,150.36,150.33,12.48213514]
[1746674106650,44.15460855,150.36,150.32,12.48213514]
[1746674106859,31.67247341,150.36,150.33,12.48213514]
[1746674107172,25.02174794,150.36,150.33,12.48213514]
[1746674107552,25.02174794,150.36,150.34,12.48213514]
[1746674109166,6.64990711,150.38,150.34,12.48213514]
[1746674109365,19.13163158,150.39,150.35,12.48213514]
[1746674109565,6.64949644,150.39,150.35,12.48213514]
[1746674109859,6.64949644,150.39,150.36,12.48213514]
[1746674110059,6.64949644,150.39,150.35,12.48213514]
[1746674110369,12.48213514,150.38,150.34,12.48213514]
[1746674110874,12.48213514,150.38,150.31,6.6529173]
[1746674111061,12.48213514,150.38,150.3,42.63309602]
[1746674111062,12.48213514,150.35,150.3,32.65325696]
[1746674111374,12.48213514,150.35,150.31,12.48213514]
[1746674112771,12.48213514,150.36,150.31,12.48213514]
[1746674113271,25.02174794,150.37,150.32,12.48213514]
[1746674113457,25.02174794,150.37,150.3,32.65327791]
[1746674113458,25.02174794,150.37,150.33,12.48213514]
[1746674113773,25.02174794,150.37,150.33,19.94779007]
[1746674114358,25.02174794,150.37,150.35,19.94779007]
[1746674114557,31.67084288,150.4,150.36,19.94779007]
[1746674114867,31.67084288,150.4,150.37,19.94779007]
[1746674115174,19.94779007,150.38,150.3,49.28667777]
[1746674115473,19.94779007,150.38,150.34,19.94779007]
[1746674115846,19.94779007,150.37,150.3,32.65327791]
[1746674116265,19.94779007,150.37,150.33,19.94779007]
[1746674116772,26.5976262,150.38,150.33,19.94779007]
[1746674116969,26.5976262,150.38,150.3,32.65327791]
[1746674117166,26.5976262,150.38,150.33,19.94779007]
[1746674117474,26.5976262,150.38,150.34,19.94779007]
[1746674117667,26.5976262,150.38,150.33,19.94779007]
[1746674117969,26.5976262,150.38,150.34,19.94779007]
[1746674118569,26.5976262,150.38,150.33,19.94779007]
[1746674118760,19.94779007,150.36,150.3,26.0]
[1746674118964,19.94779007,150.36,150.32,19.94779007]
[1746674119301,25.02174794,150.37,150.33,19.94779007]
[1746674119458,44.96953801,150.37,150.33,19.94779007]
[1746674119859,19.94779007,150.35,150.3,26.0]
[1746674120159,19.94779007,150.35,150.31,19.94779007]
[1746674120751,26.59937341,150.35,150.31,19.94779007]
[1746674121358,6.65158334,150.35,150.32,19.94779007]
[1746674121870,26.59863846,150.36,150.32,19.94779007]
[1746674122176,51.6201343,150.37,150.33,19.94779007]
[1746674122968,44.96953801,150.37,150.33,19.94779007]
[1746674123174,51.61992367,150.37,150.33,19.94779007]
[1746674123548,31.6721336,150.37,150.33,19.94779007]
[1746674123864,25.02174794,150.37,150.34,19.94779007]
[1746674125274,25.02174794,150.37,150.35,19.94779007]
[1746674125483,20.1702,150.41,150.36,19.94779007]
[1746674125673,19.94779007,150.4,150.33,32.65197996]
[1746674125855,18.64964886,150.4,150.33,32.65197996]
[1746674126056,19.94779007,150.39,150.35,19.94779007]
[1746674126383,19.94779007,150.4,150.35,19.94779007]
[1746674126569,19.94779007,150.4,150.36,19.94779007]
[1746674126798,46.76655241,150.41,150.36,19.94779007]
[1746674127359,20.1702,150.41,150.37,19.94779007]
[1746674127669,21.47799007,150.41,150.37,19.94779007]
[1746674128166,19.94779007,150.41,150.37,19.94779007]
[1746674128681,26.59585453,150.42,150.38,19.94779007]